fUST/lending_fUST_20240521
["ID","MTS","AMOUNT","RATE_DAILY","PERIOD"]
[327579263,1716241855376,-623.9,0.00044109,41]
[327579264,1716241855385,-500.0,0.00044109,41]
[327579265,1716241855394,-500.0,0.00044109,41]
[327579266,1716241855403,-500.0,0.00044109,41]
[327579267,1716241855412,-500.0,0.00044109,41]
[327579268,1716241855422,-500.0,0.00044109,41]
[327579269,1716241855431,-500.0,0.00044109,41]
[327579270,1716241855440,-500.0,0.00044109,41]
[327579271,1716241855450,-830.35,0.00044109,41]
[327579272,1716241855459,-500.71,0.00044109,41]
[327579273,1716241855469,-500.0,0.00044109,41]
[327579274,1716241855478,-500.0,0.00044109,41]
[327579275,1716241855487,-500.0,0.00044109,41]
[327579276,1716241855497,-535.6,0.00044109,41]
[327579277,1716241855506,-500.0,0.00044109,41]
[327579278,1716241855515,-500.0,0.00044109,41]
[327579279,1716241855525,-500.0,0.00044109,41]
[327579280,1716241855534,-500.0,0.00044109,41]
[327579281,1716241855543,-500.0,0.00044109,41]
[327579282,1716241855552,-500.0,0.00044109,41]
[327579283,1716241855562,-500.0,0.00044109,41]
[327579284,1716241855571,-953.52,0.00044109,41]
[327579285,1716241855581,-500.0,0.00044109,41]
[327579286,1716241855590,-500.0,0.00044109,41]
[327579287,1716241855599,-500.0,0.00044109,41]
[327579288,1716241855608,-500.0,0.00044109,41]
[327579289,1716241855618,-956.89,0.00044109,41]
[327579290,1716241855627,-500.0,0.00044109,41]
[327579291,1716241855636,-500.0,0.00044109,41]
[327579292,1716241855645,-500.0,0.00044109,41]
[327579293,1716241855657,-2898.06,0.00044109,41]
[327579294,1716241855666,-1161.19,0.00044109,41]
[327579295,1716241855679,-1677.13,0.00044109,41]
[327579296,1716241855688,-500.0,0.00044109,41]
[327579297,1716241855698,-500.0,0.00044109,41]
[327579298,1716241855708,-234.29991254,0.00044109,41]
[327579299,1716241855717,-500.0,0.00044109,41]
[327579300,1716241855727,-500.0,0.00044109,41]
[327579301,1716241855738,-500.0,0.00044109,41]
[327579302,1716241855748,-500.0,0.00044109,41]
[327579303,1716241855759,-458.22800551,0.00044109,41]
[327579304,1716241855769,-500.0,0.00044109,41]
[327579305,1716241855778,-500.0,0.00044109,41]
[327579306,1716241855788,-500.0,0.00044109,41]
[327579307,1716241855797,-751.84,0.00044109,41]
[327579308,1716241855806,-500.0,0.00044109,41]
[327579309,1716241855815,-507.63244682,0.00044109,41]
[327579310,1716241855825,-1401.9,0.00044109,41]
[327579311,1716241855835,-500.0,0.00044109,41]
[327579312,1716241855844,-505.31255802,0.00044109,41]
[327579313,1716241855854,-877.29,0.00044109,41]
[327579314,1716241855863,-500.0,0.00044109,41]
[327579315,1716241855872,-547.74,0.00044109,41]
[327579316,1716241855881,-500.0,0.00044109,41]
[327579317,1716241855891,-854.32,0.00044109,41]
[327579318,1716241855900,-500.0,0.00044109,41]
[327579319,1716241855910,-500.0,0.00044109,41]
[327579320,1716241855919,-1000.0,0.00044109,41]
[327579321,1716241855928,-500.0,0.00044109,41]
[327579322,1716241855938,-500.0,0.00044109,41]
[327579323,1716241855947,-500.0,0.00044109,41]
[327579324,1716241855957,-513.95,0.00044109,41]
[327579325,1716241855966,-500.0,0.00044109,41]
[327579326,1716241855977,-500.0,0.00044109,41]
[327579327,1716241855987,-500.0,0.00044109,41]
[327579328,1716241855996,-500.0,0.00044109,41]
[327579329,1716241856006,-500.0,0.00044109,41]
[327579330,1716241856015,-500.0,0.00044109,41]
[327579331,1716241856025,-516.09009659,0.00044109,41]
[327579332,1716241856035,-500.0,0.00044109,41]
[327579333,1716241856046,-552.8,0.00044109,41]
[327579334,1716241856056,-500.0,0.00044109,41]
[327579335,1716241856065,-500.0,0.00044109,41]
[327579336,1716241856075,-556.93,0.00044109,41]
[327579337,1716241856085,-913.54,0.00044109,41]
[327579338,1716241856095,-500.0,0.00044109,41]
[327579339,1716241856104,-500.0,0.00044109,41]
[327579340,1716241856113,-505.44348738,0.00044109,41]
[327579341,1716241856123,-500.0,0.00044109,41]
[327579342,1716241856133,-1000.0,0.00044109,41]
[327579343,1716241856142,-500.0,0.00044109,41]
[327579344,1716241856152,-502.96161844,0.00044109,41]
[327579345,1716241856161,-500.0,0.00044109,41]
[327579346,1716241856171,-500.0,0.00044109,41]
[327579347,1716241856180,-500.0,0.00044109,41]
[327579348,1716241856190,-913.09,0.00044109,41]
[327579349,1716241856199,-500.0,0.00044109,41]
[327579350,1716241856209,-504.76943524,0.00044109,41]
[327579351,1716241856220,-500.0,0.00044109,41]
[327579352,1716241856229,-500.0,0.00044109,41]
[327579353,1716241856238,-500.0,0.00044109,41]
[327579354,1716241856249,-1073.49,0.00044109,41]
[327579355,1716241856258,-500.0,0.00044109,41]
[327579356,1716241856268,-1070.33,0.00044109,41]
[327579357,1716241856277,-500.0,0.00044109,41]
[327579358,1716241856286,-1360.22,0.00044109,41]
[327579359,1716241856295,-1404.44,0.00044109,41]
[327579360,1716241856304,-183.75187817,0.00044109,41]
[327579361,1716241856313,-500.0,0.00044109,41]
[327579362,1716241856322,-500.0,0.00044109,41]
[327579363,1716241856331,-709.59,0.00044109,41]
[327579364,1716241856341,-1279.17,0.00044109,41]
[327579365,1716241856350,-500.0,0.00044109,41]
[327579366,1716241856359,-1101.89,0.00044109,41]
[327579367,1716241856368,-545.02733015,0.00044109,41]
[327579368,1716241856378,-500.0,0.00044109,41]
[327579369,1716241856387,-500.0,0.00044109,41]
[327579370,1716241856396,-500.0,0.00044109,41]
[327579371,1716241856405,-500.0,0.00044109,41]
[327579372,1716241856416,-500.0,0.00044109,41]
[327579373,1716241856425,-500.0,0.00044109,41]
[327579374,1716241856531,-500.0,0.00044109,41]
[327579375,1716241856542,-615.77,0.00044109,41]
[327579376,1716241856551,-1084.47,0.00044109,41]
[327579377,1716241856561,-500.0,0.00044109,41]
[327579378,1716241856572,-500.0,0.00044109,41]
[327579379,1716241856582,-500.0,0.00044109,41]
[327579380,1716241856592,-708.39,0.00044109,41]
[327579381,1716241856601,-500.0,0.00044109,41]
[327579382,1716241856612,-500.0,0.00044109,41]
[327579383,1716241856621,-1089.48,0.00044109,2]
[327579384,1716241856630,-500.0,0.00044109,41]
[327579385,1716241856639,-601.12,0.00044109,41]
[327579386,1716241856649,-840.26,0.00044109,41]
[327579387,1716241856659,-1434.41,0.00044109,41]
[327579388,1716241856668,-500.0,0.00044109,41]
[327579389,1716241856682,-496.40297974,0.00044109,41]
[327579390,1716241856691,-643.2,0.00044109,41]
[327579391,1716241856703,-500.0,0.00044109,41]
[327579392,1716241856712,-663.84,0.00044109,41]
[327579393,1716241856721,-1120.97,0.00044109,41]
[327579394,1716241856730,-500.0,0.00044109,41]
[327579395,1716241856741,-500.0,0.00044109,41]
[327579396,1716241856751,-500.0,0.00044109,41]
[327579397,1716241856759,-500.0,0.00044109,41]
[327579398,1716241856769,-500.0,0.00044109,41]
[327579399,1716241856778,-819.96,0.00044109,41]
[327579400,1716241856787,-831.58,0.00044109,41]
[327579401,1716241856796,-500.0,0.00044109,41]
[327579402,1716241856807,-562.15,0.00044109,41]
[327579403,1716241856817,-500.0,0.00044109,41]
[327579404,1716241856826,-500.0,0.00044109,41]
[327579405,1716241856835,-500.0,0.00044109,41]
[327579406,1716241856845,-718.07,0.00044109,41]
[327579407,1716241856855,-500.0,0.00044109,41]
[327579408,1716241856864,-423.48112156,0.00044109,41]
[327579409,1716241856874,-644.51,0.00044109,41]
[327579410,1716241856884,-500.0,0.00044109,41]
[327579411,1716241856894,-500.0,0.00044109,41]
[327579412,1716241856905,-500.0,0.00044109,41]
[327579413,1716241856914,-605.39670154,0.00044109,41]
[327579414,1716241856924,-548.26,0.00044109,41]
[327579415,1716241856934,-500.0,0.00044109,41]
[327579416,1716241856943,-500.0,0.00044109,41]
[327579417,1716241856953,-1008.27,0.00044109,41]
[327579418,1716241856963,-500.0,0.00044109,41]
[327579419,1716241856974,-1502.71,0.00044109,41]
[327579420,1716241856983,-500.0,0.00044109,41]
[327579421,1716241856992,-500.0,0.00044109,41]
[327579422,1716241857002,-500.0,0.00044109,41]
[327579423,1716241857011,-774.83,0.00044109,41]
[327579424,1716241857021,-500.0,0.00044109,41]
[327579425,1716241857030,-500.0,0.00044109,120]
[327579426,1716241857039,-500.0,0.00044109,41]
[327579427,1716241857048,-500.0,0.00044109,41]
[327579428,1716241857057,-500.0,0.00044109,14]
[327579429,1716241857067,-862.18,0.00044109,41]
[327579430,1716241857075,-919.14,0.00044109,41]
[327579431,1716241857085,-3663.22,0.00044109,30]
[327579432,1716241857096,-500.0,0.00044109,41]
[327579433,1716241857106,-500.0,0.00044109,41]
[327579434,1716241857115,-592.27,0.00044109,41]
[327579435,1716241857124,-1231.25,0.00044109,41]
[327579436,1716241857133,-4445.0,0.00044109,41]
[327579437,1716241857142,-500.0,0.00044109,41]
[327579438,1716241857151,-500.0,0.00044109,41]
[327579439,1716241857160,-374.54580113,0.00044109,41]
[327579440,1716241857170,-500.0,0.00044109,41]
[327579441,1716241857180,-2889.45,0.00044109,41]
[327579442,1716241857190,-500.0,0.00044109,41]
[327579443,1716241857199,-500.0,0.00044109,41]
[327579444,1716241857209,-500.0,0.00044109,41]
[327579445,1716241857218,-500.0,0.00044109,41]
[327579446,1716241857229,-500.0,0.00044109,41]
[327579447,1716241857238,-1374.65,0.00044109,41]
[327579448,1716241857247,-500.0,0.00044109,41]
[327579449,1716241857257,-500.0,0.00044109,41]
[327579450,1716241857266,-859.19,0.00044109,41]
[327579451,1716241857276,-500.0,0.00044109,41]
[327579452,1716241857285,-2739.92,0.00044109,41]
[327579453,1716241857295,-2697.96,0.00044109,41]
[327579454,1716241857304,-4281.6,0.00044109,41]
[327579455,1716241857314,-186.10378268,0.00044109,41]
[327579456,1716241857324,-500.0,0.00044109,41]
[327579457,1716241857333,-880.65,0.00044109,41]
[327579458,1716241857343,-500.0,0.00044109,41]
[327579459,1716241857353,-500.0,0.00044109,41]
[327579460,1716241857364,-1442.32,0.00044109,41]
[327579461,1716241857375,-885.43,0.00044109,41]
[327579462,1716241857384,-496.72665661,0.00044109,41]
[327579463,1716241857394,-500.0,0.00044109,41]
[327579464,1716241857404,-1456.69,0.00044109,41]
[327579465,1716241857415,-500.0,0.00044109,41]
[327579466,1716241857424,-500.0,0.00044109,41]
[327579467,1716241857437,-500.0,0.00044109,41]
[327579468,1716241857453,-526.69,0.00044109,41]
[327579469,1716241857462,-500.0,0.00044109,41]
[327579470,1716241857473,-500.0,0.00044109,41]
[327579471,1716241857482,-500.0,0.00044109,41]
[327579472,1716241857491,-1202.62,0.00044109,41]
[327579473,1716241857501,-500.0,0.00044109,41]
[327579474,1716241857510,-812.21,0.00044109,41]
[327579475,1716241857519,-2605.23,0.00044109,41]
[327579476,1716241857529,-500.0,0.00044109,2]
[327579477,1716241857538,-500.0,0.00044109,41]
[327579478,1716241857548,-500.0,0.00044109,41]
[327579479,1716241857558,-508.89141649,0.00044109,2]
[327579480,1716241857567,-1026.33,0.00044109,41]
[327579481,1716241857576,-500.0,0.00044109,41]
[327579482,1716241857585,-1010.65,0.00044109,7]
[327579483,1716241857594,-1314.62823541,0.00044109,41]
[327579489,1716242036917,555.73813713,0.00029,30]
[327579497,1716242497060,406.2416773,8.178e-05,2]
[327579518,1716242977767,1093.7583227,8.143e-05,2]
[327579559,1716243033388,-154.86062544,8.14e-05,2]
[327579560,1716243033402,-9561.24585473,8.14e-05,2]
[327579561,1716243033416,-1496.69412767,8.141e-05,2]
[327579563,1716243033429,-1043.44234529,8.141e-05,2]
[327579566,1716243033442,-26212.95298073,8.141e-05,2]
[327579568,1716243033455,-571.5839984,8.141e-05,2]
[327579570,1716243033468,-236.56094657,8.142e-05,2]
[327579572,1716243033481,-230.85037262,8.142e-05,2]
[327579573,1716243033493,-59411.99421901,8.142e-05,2]
[327579575,1716243033508,-23806.2416773,8.143e-05,2]
[327579577,1716243033520,-2163.92987174,9.138e-05,2]
[327579579,1716243033534,-238.80965777,9.139e-05,2]
[327579581,1716243033547,-348.3572859,9.143e-05,2]
[327579584,1716243033561,-2466.41391558,9.148e-05,2]
[327579586,1716243033574,-183.84975011,9.158e-05,2]
[327579588,1716243033588,-414.54754217,9.174e-05,2]
[327579590,1716243033601,-154.9635035,9.999e-05,2]
[327579593,1716243033615,-9400.5542733,0.0001,2]
[327579595,1716243033629,-2215.19,0.00010959,2]
[327579597,1716243033642,-1846.0,0.00010959,2]
[327579600,1716243033654,-1538.33,0.00010959,2]
[327579602,1716243033667,-1538.33,0.00010959,2]
[327579604,1716243033680,-1025.55,0.00010959,2]
[327579606,1716243033694,-854.63,0.00010959,2]
[327579609,1716243033707,-712.19,0.00010959,2]
[327579611,1716243033720,-267.98833843,0.00010959,2]
[327579612,1716243033737,-325.50166157,0.00010959,2]
[327579613,1716243033750,-60.51051128,0.00010959,2]
[327579639,1716243038666,-154.86062544,8.139e-05,2]
[327579641,1716243038675,-434.06948872,0.00010959,2]
[327579643,1716243038685,-412.15,0.00010959,2]
[327579645,1716243038694,-343.45,0.00010959,2]
[327579648,1716243038704,-286.21,0.00010959,2]
[327579649,1716243038714,-286.21,0.00010959,2]
[327579650,1716243038723,-190.81,0.00010959,2]
[327579651,1716243038732,-159.01,0.00010959,2]
[327579652,1716243038742,-795.06,0.00010959,2]
[327579653,1716243038751,-183.84975011,0.00012672,2]
[327579655,1716243038761,-2151.97780284,0.000129,2]
[327579657,1716243038771,-208.31096458,0.00013699,2]
[327579659,1716243038783,-6063.20442072,0.00013699,2]
[327579661,1716243038793,-1314.502577,0.00013699,2]
[327579663,1716243038802,-2312.4618917,0.00013699,2]
[327579665,1716243038811,-3000.0,0.00013699,2]
[327579667,1716243038820,-283.65215008,0.000137,2]
[327579668,1716243038830,-921.16266462,0.00014,2]
[327579669,1716243038839,-658.15339953,0.00014997,2]
[327579670,1716243038849,-7894.33531896,0.00014998,2]
[327579671,1716243038866,-942.77170322,0.00015,2]
[327579672,1716243038880,-2108.05589247,0.00015,2]
[327579673,1716243038890,-16236.55531047,0.00015,2]
[327579721,1716243041787,-19381.61067568,0.00015,2]
[327579722,1716243041798,-1504.88932432,0.00015,2]
[327579723,1716243041811,-179.44944891,0.00015,2]
[327579725,1716243041821,-172.04613006,0.00015,2]
[327579727,1716243041831,-152.46917844,0.00015,2]
[327579777,1716243043982,-996.8760894,0.00015,2]
[327579778,1716243043992,-1149.34526784,0.00015,2]
[327579779,1716243044001,-1149.34526784,0.00015,2]
[327579780,1716243044011,-1014.39427083,0.00015,2]
[327579781,1716243044023,-134.95099701,0.00015,2]
[327579782,1716243044033,-1149.34526784,0.00015,2]
[327579783,1716243044042,-1149.34526784,0.00015,2]
[327579784,1716243044054,-1149.34526784,0.00015,2]
[327579785,1716243044068,-5473.95525861,0.00015,2]
[327579786,1716243044079,-4725.10773749,0.00015,2]
[327579788,1716243044091,-1189.73765153,0.00015,2]
[327579789,1716243044105,-12458.57433997,0.00015,2]
[327579790,1716243044115,-1149.34526784,0.00015,2]
[327579791,1716243044124,-183.84975011,0.00016286,2]
[327579792,1716243044134,-154.86062544,0.000165,2]
[327579793,1716243044143,-2151.97780278,0.00016693,2]
[327579794,1716243044153,-468.00878609,0.000189,2]
[327579796,1716243044162,-312.30945488,0.00019176,2]
[327579798,1716243044177,-10588.84432573,0.00019178,3]
[327579800,1716243044187,-489.37899657,0.00019178,2]
[327579802,1716243044196,-500.0,0.00019178,2]
[327579803,1716243044205,-500.0,0.00019178,2]
[327579804,1716243044214,-500.0,0.00019178,2]
[327579805,1716243044223,-500.0,0.00019178,2]
[327579806,1716243044233,-500.0,0.00019178,2]
[327579807,1716243044242,-500.0,0.00019178,2]
[327579808,1716243044251,-500.0,0.00019178,2]
[327579809,1716243044261,-500.0,0.00019178,2]
[327579810,1716243044270,-500.0,0.00019178,2]
[327579811,1716243044279,-500.0,0.00019178,2]
[327579812,1716243044290,-500.0,0.00019178,2]
[327579813,1716243044300,-500.0,0.00019178,2]
[327579814,1716243044309,-540.06809325,0.00019178,2]
[327579815,1716243044318,-500.0,0.00019178,2]
[327579816,1716243044327,-500.0,0.00019178,2]
[327579817,1716243044337,-500.0,0.00019178,2]
[327579818,1716243044347,-500.0,0.00019178,2]
[327579819,1716243044356,-500.0,0.00019178,2]
[327579820,1716243044365,-500.0,0.00019178,2]
[327579821,1716243044375,-500.0,0.00019178,2]
[327579822,1716243044384,-500.0,0.00019178,2]
[327579823,1716243044393,-500.0,0.00019178,2]
[327579824,1716243044403,-203.31128428,0.00019178,2]
[327579825,1716243044412,-500.0,0.00019178,2]
[327579826,1716243044424,-336.74421816,0.00019178,2]
[327579827,1716243044434,-500.0,0.00019178,2]
[327579828,1716243044443,-500.0,0.00019178,2]
[327579829,1716243044453,-500.0,0.00019178,2]
[327579830,1716243044463,-440.75593105,0.00019178,2]
[327579831,1716243044473,-500.0,0.00019178,2]
[327579832,1716243044482,-500.0,0.00019178,2]
[327579833,1716243044492,-193.72973142,0.00019178,2]
[327579834,1716243044501,-500.0,0.00019178,2]
[327579835,1716243044511,-500.0,0.00019178,2]
[327579836,1716243044521,-500.0,0.00019178,2]
[327579837,1716243044530,-407.19249305,0.00019178,2]
[327579839,1716243044541,-500.0,0.00019178,2]
[327579841,1716243044551,-285.32650667,0.00019178,2]
[327579844,1716243044561,-500.0,0.00019178,2]
[327579846,1716243044571,-500.0,0.00019178,2]
[327579847,1716243044582,-608.69412251,0.00019178,2]
[327579849,1716243044591,-500.0,0.00019178,2]
[327579852,1716243044600,-500.0,0.00019178,2]
[327579870,1716243044610,-400.0,0.00019178,2]
[327579873,1716243044784,-500.0,0.00019178,2]
[327579875,1716243044794,-500.0,0.00019178,2]
[327579877,1716243044804,-500.0,0.00019178,2]
[327579879,1716243044814,-500.0,0.00019178,2]
[327579881,1716243044824,-317.36821131,0.00019178,2]
[327579883,1716243044833,-500.0,0.00019178,2]
[327579885,1716243044843,-500.0,0.00019178,2]
[327579887,1716243044853,-500.0,0.00019178,2]
[327579889,1716243044862,-500.0,0.00019178,2]
[327579891,1716243044871,-500.0,0.00019178,2]
[327579893,1716243044881,-500.0,0.00019178,2]
[327579895,1716243044892,-500.0,0.00019178,2]
[327579897,1716243044902,-500.0,0.00019178,2]
[327579899,1716243044911,-500.0,0.00019178,2]
[327579901,1716243044921,-500.0,0.00019178,2]
[327579903,1716243044930,-500.0,0.00019178,2]
[327579905,1716243044940,-500.0,0.00019178,2]
[327579907,1716243044949,-500.0,0.00019178,2]
[327579909,1716243044958,-500.0,0.00019178,2]
[327579911,1716243044968,-500.0,0.00019178,2]
[327579913,1716243044978,-500.0,0.00019178,2]
[327579915,1716243044989,-500.0,0.00019178,2]
[327579917,1716243044998,-500.0,0.00019178,2]
[327579919,1716243045007,-500.0,0.00019178,2]
[327579921,1716243045018,-500.0,0.00019178,2]
[327579923,1716243045027,-500.0,0.00019178,2]
[327579925,1716243045037,-500.0,0.00019178,2]
[327579927,1716243045046,-500.0,0.00019178,2]
[327579929,1716243045057,-500.0,0.00019178,2]
[327579931,1716243045069,-500.0,0.00019178,2]
[327579933,1716243045078,-500.0,0.00019178,2]
[327579935,1716243045088,-500.0,0.00019178,2]
[327579937,1716243045099,-500.0,0.00019178,2]
[327579939,1716243045108,-500.0,0.00019178,2]
[327579941,1716243045118,-500.0,0.00019178,2]
[327579943,1716243045127,-500.0,0.00019178,2]
[327579945,1716243045138,-500.0,0.00019178,2]
[327579947,1716243045150,-500.0,0.00019178,2]
[327579949,1716243045160,-500.0,0.00019178,2]
[327579951,1716243045170,-500.0,0.00019178,2]
[327579953,1716243045180,-500.0,0.00019178,2]
[327579955,1716243045189,-500.0,0.00019178,2]
[327579957,1716243045198,-500.0,0.00019178,2]
[327579959,1716243045207,-500.0,0.00019178,2]
[327579961,1716243045216,-500.0,0.00019178,2]
[327579963,1716243045226,-500.0,0.00019178,2]
[327579964,1716243045235,-500.0,0.00019178,2]
[327579966,1716243045245,-500.0,0.00019178,2]
[327579968,1716243045254,-500.0,0.00019178,2]
[327579970,1716243045264,-500.0,0.00019178,2]
[327579972,1716243045273,-500.0,0.00019178,2]
[327579974,1716243045283,-500.0,0.00019178,2]
[327579976,1716243045293,-500.0,0.00019178,2]
[327579978,1716243045302,-500.0,0.00019178,2]
[327579980,1716243045312,-500.0,0.00019178,2]
[327579982,1716243045322,-260.86890964,0.00019178,2]
[327579984,1716243045332,-500.0,0.00019178,2]
[327579986,1716243045342,-500.0,0.00019178,2]
[327579988,1716243045352,-500.0,0.00019178,2]
[327579990,1716243045362,-500.0,0.00019178,2]
[327579992,1716243045371,-500.0,0.00019178,2]
[327579994,1716243045381,-500.0,0.00019178,2]
[327579996,1716243045390,-430.8359175,0.00019178,2]
[327579998,1716243045400,-500.0,0.00019178,2]
[327580000,1716243045410,-500.0,0.00019178,2]
[327580002,1716243045421,-500.0,0.00019178,2]
[327580004,1716243045431,-500.0,0.00019178,2]
[327580006,1716243045440,-500.0,0.00019178,2]
[327580008,1716243045450,-500.0,0.00019178,2]
[327580010,1716243045459,-500.0,0.00019178,2]
[327580012,1716243045468,-500.0,0.00019178,2]
[327580014,1716243045478,-500.0,0.00019178,2]
[327580017,1716243045494,-500.0,0.00019178,2]
[327580020,1716243045510,-500.0,0.00019178,2]
[327580022,1716243045521,-500.0,0.00019178,2]
[327580024,1716243045531,-500.0,0.00019178,2]
[327580026,1716243045542,-500.0,0.00019178,2]
[327580028,1716243045552,-500.0,0.00019178,2]
[327580030,1716243045562,-503.77384645,0.00019178,2]
[327580032,1716243045573,-503.77384645,0.00019178,2]
[327580034,1716243045583,-503.77384644,0.00019178,2]
[327580036,1716243045594,-250.0,0.00019178,2]
[327580038,1716243045604,-500.0,0.00019178,2]
[327580040,1716243045615,-453.31508788,0.00019178,2]
[327580042,1716243045626,-618.75334743,0.00019178,2]
[327580044,1716243045636,-500.0,0.00019178,2]
[327580046,1716243045646,-500.0,0.00019178,2]
[327580048,1716243045656,-500.0,0.00019178,2]
[327580050,1716243045667,-490.52701378,0.00019178,2]
[327580053,1716243045680,-500.0,0.00019178,2]
[327580055,1716243045690,-500.0,0.00019178,2]
[327580057,1716243045700,-426.67768894,0.00019178,2]
[327580059,1716243045710,-500.0,0.00019178,2]
[327580061,1716243045720,-389.49955554,0.00019178,2]
[327580063,1716243045730,-500.0,0.00019178,2]
[327580065,1716243045740,-254.92346072,0.00019178,2]
[327580067,1716243045750,-500.0,0.00019178,2]
[327580069,1716243045760,-500.0,0.00019178,2]
[327580071,1716243045770,-500.0,0.00019178,2]
[327580073,1716243045780,-500.0,0.00019178,2]
[327580075,1716243045792,-157.18943852,0.00019178,2]
[327580077,1716243045801,-500.0,0.00019178,2]
[327580079,1716243045813,-500.0,0.00019178,2]
[327580081,1716243045823,-500.0,0.00019178,2]
[327580083,1716243045833,-156.86268889,0.00019178,2]
[327580085,1716243045843,-490.79119545,0.00019178,2]
[327580088,1716243045853,-500.0,0.00019178,2]
[327580089,1716243045863,-378.63645465,0.00019178,2]
[327580092,1716243045874,-500.0,0.00019178,2]
[327580093,1716243045884,-500.0,0.00019178,2]
[327580096,1716243045894,-500.0,0.00019178,2]
[327580098,1716243045904,-503.67799216,0.00019178,2]
[327580100,1716243045914,-475.97037036,0.00019178,2]
[327580102,1716243045927,-164.735554,0.00019178,2]
[327580104,1716243045936,-163.800764,0.00019178,2]
[327580106,1716243045946,-13832.97637787,0.000199,2]
[327580108,1716243045956,-183.84975011,0.000199,2]
[327580110,1716243045966,-269.11819625,0.00019999,2]
[327580112,1716243045975,-154.90705577,0.0002,2]
[327580114,1716243045985,-1565.51900701,0.0002,2]
[327580116,1716243045995,-4692.31037495,0.0002,2]
[327580118,1716243046005,-7413.7136393,0.0002,2]
[327580120,1716243046015,-240.40188331,0.0002,2]
[327580122,1716243046025,-400.0,0.0002,2]
[327580124,1716243046035,-154.84515485,0.0002,2]
[327580126,1716243046044,-200.0,0.0002,2]
[327580128,1716243046057,-151.3789105,0.0002,2]
[327580130,1716243046068,-121029.83103876,0.0002,2]
[327580133,1716243046078,-1314.502577,0.00020548,2]
[327580136,1716243046087,-603.2,0.00020792,3]
[327580138,1716243046099,-603.2,0.00020792,2]
[327580140,1716243046109,-150.0,0.00020792,3]
[327580142,1716243046118,-150.0,0.00020792,2]
[327580144,1716243046128,-88888.0,0.00020812,3]
[327580147,1716243046140,-7057.6329,0.0002091,2]
[327580150,1716243046150,-8863.7212913,0.00020911,2]
[327580153,1716243046167,-45.78660835,0.00020911,2]
[327580155,1716243046178,-285.03925166,0.00020911,2]
[327580157,1716243046188,-1094.99548197,0.00020911,2]
[327580159,1716243046197,-457.90216994,0.00020911,2]
[327580161,1716243046207,-194.45514723,0.00020911,2]
[327580163,1716243046216,-155.0826448,0.00020911,2]
[327580165,1716243046226,-319.00156437,0.00020911,2]
[327580167,1716243046236,-274.24725433,0.00020911,2]
[327580169,1716243046245,-309.65937468,0.00020911,2]
[327580171,1716243046255,-2634.32657847,0.00020912,2]
[327580173,1716243046264,-1422.35770959,0.00020912,2]
[327580175,1716243046274,-261.10136921,0.00020912,2]
[327580177,1716243046283,-1338.92794901,0.00020912,2]
[327580179,1716243046293,-1003.09815455,0.00020912,2]
[327580181,1716243046303,-909.64823199,0.00020912,2]
[327580183,1716243046313,-719.48635081,0.00020912,2]
[327580185,1716243046322,-167.62277945,0.00020912,2]
[327580187,1716243046332,-528.43613852,0.00020912,2]
[327580189,1716243046343,-349.26632079,0.00020912,2]
[327580191,1716243046352,-281.33101558,0.00020913,2]